[Event "Vugar Gashimov Memorial Blitz 2024"]
[Site "Shusha"]
[Date "2024.09.28"]
[Round "13.2"]
[White "Aravindh, Chithambaram VR."]
[Black "Nepomniachtchi, Ian"]
[Result "0-1"]
[ECO "D53"]
[WhiteElo "2698"]
[BlackElo "2755"]
[Annotator "RC"]
[PlyCount "200"]
[EventDate "2024.09.28"]
[EventType "tourn"]
[EventCountry "AZE"]
[SourceTitle "playchess.com"]
[Source "ChessBase"]
[SourceQuality "1"]
[TimeControl "180+2"]

1. d4 {[%emt 0:00:01]} Nf6 {[%emt 0:00:01]} 2. Nf3 {[%emt 0:00:02]} d5 {[%emt 0:00:01]} 3. c4 {[%emt 0:00:02]} e6 {[%emt 0:00:01]} 4. Nc3 {[%emt 0:00:02]} Be7 {[%emt 0:00:01]} 5. Bg5 {[%emt 0:00:07]} h6 {[%emt 0:00:01]} 6. Bh4 {[%emt 0:00:02]} dxc4 {[%emt 0:00:01]} 7. e3 {[%emt 0:00:02]} c5 {[%emt 0:00:01]} 8. Bxc4 {[%emt 0:00:11]} cxd4 {[%emt 0:00:01]} 9. Nxd4 {[%emt 0:00:02]} O-O {[%emt 0:00:07]} 10. O-O {[%emt 0:00:02]} Bd7 {[%emt 0:00:01]} 11. Bg3 {[%emt 0:00:15]} a6 {[%emt 0:00:07]} 12. e4 {[%emt 0:00:08]} Nc6 {[%emt 0:00:12]} 13. e5 {[%emt 0:00:11]} Nxd4 {[%emt 0:00:01]} 14. Qxd4 {[%emt 0:00:01]} Nh5 {[%emt 0:00:01]} 15. Rfd1 {[%emt 0:00:03]} Nxg3 {[%emt 0:00:16]} 16. Qxd7 {[%emt 0:00:06]} Nf5 {[%emt 0:00:01]} 17. Bxe6 {[%emt 0:00:03]} Qxd7 {[%emt 0:00:26]} 18. Bxd7 {[%emt 0:00:02]} Nh4 {[%emt 0:00:05]} 19. Nd5 {[%emt 0:00:10]} Bc5 {[%emt 0:00:01]} 20. Rac1 {[%emt 0:00:03]} Ba7 {[%emt 0:00:01]} 21. Nf4 {[%emt 0:01:03]} g5 {[%emt 0:00:00]} 22. Nh5 {[%emt 0:00:14]} Ng6 {[%emt 0:00:01]} 23. Re1 {[%emt 0:00:18]} Bd4 {[%emt 0:00:06]} 24. b3 {[%emt 0:00:18]} Nxe5 {[%emt 0:00:05]} 25. Bf5 {[%emt 0:00:01]} Rad8 {[%emt 0:00:03]} 26. Ng3 {[%emt 0:00:05]} Rfe8 {[%emt 0:00:05]} 27. h3 {[%emt 0:00:03]} Bb2 {[%emt 0:00:08]} 28. Rcd1 {[%emt 0:00:04]} Bc3 {[%emt 0:00:03]} 29. Rxd8 {[%emt 0:00:04]} Rxd8 {[%emt 0:00:01]} 30. Rc1 {[%emt 0:00:01]} Bb4 {[%emt 0:00:13]} 31. Rc8 {[%emt 0:00:01]} Rxc8 {[%emt 0:00:25]} 32. Bxc8 {[%emt 0:00:02]} Nd3 {[%emt 0:00:01]} 33. Bxb7 {[%emt 0:00:03]} a5 {[%emt 0:00:01]} 34. Bd5 {[%emt 0:00:10]} Bc5 {[%emt 0:00:05]} 35. Ne4 {[%emt 0:00:01]} Bb6 {[%emt 0:00:01]} 36. Bc4 {[%emt 0:00:03]} Ne5 {[%emt 0:00:04]} 37. Kf1 {[%emt 0:00:04]} Kg7 {[%emt 0:00:01]} 38. Ke2 {[%emt 0:00:01]} f5 {[%emt 0:00:02]} 39. Nd6 {[%emt 0:00:02]} f4 {[%emt 0:00:01]} 40. Nf5+ {[%emt 0:00:02]} Kg6 {[%emt 0:00:03]} 41. Ne7+ {[%emt 0:00:02]} Kg7 {[%emt 0:00:00]} 42. Nd5 {[%emt 0:00:03]} Bc5 {[%emt 0:00:01]} 43. Nc3 {[%emt 0:00:04]} Bd4 {[%emt 0:00:03]} 44. Ne4 {[%emt 0:00:01]} Kg6 {[%emt 0:00:04]} 45. Bd3 {[%emt 0:00:02]} Kg7 {[%emt 0:00:01]} 46. a3 {[%emt 0:00:02]} Nc6 {[%emt 0:00:07]} 47. Nd6 {[%emt 0:00:03]} Bc5 {[%emt 0:00:01]} 48. Nf5+ {[%emt 0:00:01]} Kf6 {[%emt 0:00:02]} 49. Nxh6 {[%emt 0:00:03]} Nd4+ {[%emt 0:00:01]} 50. Kf1 {[%emt 0:00:01]} Bxa3 {[%emt 0:00:03]} 51. Ng4+ {[%emt 0:00:02]} Kg7 {[%emt 0:00:01]} 52. Bc4 {[%emt 0:00:01]} Bd6 {[%emt 0:00:02]} 53. Nh2 {[%emt 0:00:03]} Kf6 {[%emt 0:00:04]} 54. Ng4+ {[%emt 0:00:01]} Kg7 {[%emt 0:00:00]} 55. Ke1 {[%emt 0:00:03]} Bb4+ {[%emt 0:00:02]} 56. Kd1 {[%emt 0:00:01]} Bc3 {[%emt 0:00:04]} 57. Nh2 {[%emt 0:00:04]} Bb4 {[%emt 0:00:01]} 58. Ng4 {[%emt 0:00:02]} Bc3 {[%emt 0:00:01]} 59. Kc1 {[%emt 0:00:06]} Be1 {[%emt 0:00:02]} 60. Kb1 {[%emt 0:00:00]} Bd2 {[%emt 0:00:03]} 61. Kb2 {[%emt 0:00:00]} Bb4 {[%emt 0:00:02]} 62. Ne5 {[%emt 0:00:03]} Kf6 {[%emt 0:00:06]} 63. Nd3 {[%emt 0:00:01]} Bd6 {[%emt 0:00:06]} 64. Kc3 {[%emt 0:00:01]} Nf5 {[%emt 0:00:00]} 65. Bd5 {[%emt 0:00:02]} Ba3 {[%emt 0:00:07]} 66. Be4 {[%emt 0:00:03]} Nd6 {[%emt 0:00:01]} 67. Kd4 {[%emt 0:00:02]} Nb5+ {[%emt 0:00:01]} 68. Kc4 {[%emt 0:00:02]} Nd6+ {[%emt 0:00:01]} 69. Kd5 {[%emt 0:00:01]} Nb5 {[%emt 0:00:00]} 70. Bf3 {[%emt 0:00:02]} Be7 {[%emt 0:00:04]} 71. Kc4 {[%emt 0:00:01]} Na3+ {[%emt 0:00:01]} 72. Kd4 {[%emt 0:00:08]} Nb5+ {[%emt 0:00:01]} 73. Kd5 {[%emt 0:00:00]} a4 {[%emt 0:00:02]} 74. bxa4 {[%emt 0:00:00]} Nc3+ {[%emt 0:00:01]} 75. Kc4 {[%emt 0:00:01]} Nxa4 {[%emt 0:00:00]} 76. Kd4 {[%emt 0:00:01]} Nb6 {[%emt 0:00:02]} 77. Ne5 {[%emt 0:00:02]} Ba3 {[%emt 0:00:04]} 78. Ng4+ {[%emt 0:00:02]} Ke6 {[%emt 0:00:02]} 79. Bd1 {[%emt 0:00:03]} Nd7 {[%emt 0:00:10]} 80. Bb3+ {[%emt 0:00:01]} Ke7 {[%emt 0:00:01]} 81. Ba4 {[%emt 0:00:04]} Nf6 {[%emt 0:00:02]} 82. Ne5 {[%emt 0:00:01]} Bb2+ {[%emt 0:00:01]} 83. Kd3 {[%emt 0:00:02]} Bxe5 {[%emt 0:00:01]} 84. Ke2 {[%emt 0:00:01]} Nh5 {[%emt 0:00:18]} 85. Kf3 {[%emt 0:00:02]} Kf6 {[%emt 0:00:00]} 86. Bb5 {[%emt 0:00:04]} Ng7 {[%emt 0:00:04]} 87. Bd7 {[%emt 0:00:03]} Nf5 {[%emt 0:00:03]} 88. Kg4 {[%emt 0:00:02]} Nh6+ {[%emt 0:00:07]} 89. Kf3 {[%emt 0:00:01]} Bd6 {[%emt 0:00:03]} 90. Bc8 {[%emt 0:00:01]} Nf7 {[%emt 0:00:00]} 91. g3 {[%emt 0:00:03]} Ne5+ {[%emt 0:00:07]} 92. Ke4 {[%emt 0:00:01]} Nc4 {[%emt 0:00:06]} 93. Kf3 {[%emt 0:00:02]} Nd2+ {[%emt 0:00:03]} 94. Kg2 {[%emt 0:00:03]} f3+ {[%emt 0:00:02]} 95. Kg1 {[%emt 0:00:03]} Bc5 {[%emt 0:00:01]} 96. Bg4 {[%emt 0:00:01]} Ke5 {[%emt 0:00:01]} 97. h4 {[%emt 0:00:03]} gxh4 {[%emt 0:00:01]} 98. gxh4 {[%emt 0:00:01]} Kf4 {[%emt 0:00:00]} 99. Bh5 {[%emt 0:00:06]} Ne4 100. Bxf3 {[%emt 0:00:02]} Ke5 {[%emt 0:00:51]} 0-1

[Event "Vugar Gashimov Memorial Blitz 2024"]
[Site "Shusha"]
[Date "2024.09.28"]
[Round "13.3"]
[White "Mamedov, Rauf"]
[Black "Artemiev, Vladislav"]
[Result "1/2-1/2"]
[ECO "C56"]
[WhiteElo "2637"]
[BlackElo "2701"]
[Annotator "RC"]
[PlyCount "152"]
[EventDate "2024.09.28"]
[EventType "tourn"]
[EventCountry "AZE"]
[SourceTitle "playchess.com"]
[Source "ChessBase"]
[SourceQuality "1"]
[TimeControl "180+2"]

1. e4 {[%emt 0:00:01]} e5 {[%emt 0:00:01]} 2. Nf3 {[%emt 0:00:01]} Nc6 {[%emt 0:00:02]} 3. d4 {[%emt 0:00:01]} exd4 {[%emt 0:00:02]} 4. Bc4 {[%emt 0:00:01]} Nf6 {[%emt 0:00:02]} 5. e5 {[%emt 0:03:08]} Ne4 {[%emt 0:00:02]} 6. Qe2 {[%emt 0:00:00]} Nc5 {[%emt 0:00:01]} 7. O-O {[%emt 0:00:00]} Be7 {[%emt 0:00:30]} 8. Rd1 {[%emt 0:00:00]} d5 {[%emt 0:00:57]} 9. exd6 {[%emt 0:00:00]} Qxd6 {[%emt 0:00:02]} 10. Nc3 {[%emt 0:00:00]} O-O {[%emt 0:01:12]} 11. Nd5 {[%emt 0:00:00]} Ne6 {[%emt 0:00:08]} 12. c3 {[%emt 0:00:00]} Na5 {[%emt 0:00:01]} 13. Nxe7+ {[%emt 0:00:00]} Qxe7 {[%emt 0:00:01]} 14. Bxe6 {[%emt 0:00:00]} Qxe6 {[%emt 0:00:07]} 15. Qxe6 {[%emt 0:00:00]} Bxe6 {[%emt 0:00:01]} 16. Nxd4 {[%emt 0:00:00]} Bd7 {[%emt 0:00:11]} 17. Bf4 {[%emt 0:00:00]} Rfc8 {[%emt 0:00:05]} 18. h3 {[%emt 0:00:00]} h6 {[%emt 0:00:01]} 19. Re1 {[%emt 0:00:00]} c5 {[%emt 0:00:02]} 20. Nf3 {[%emt 0:00:00]} Be6 {[%emt 0:00:01]} 21. Ne5 {[%emt 0:00:00]} Rd8 {[%emt 0:00:02]} 22. b4 {[%emt 0:00:00]} cxb4 {[%emt 0:00:02]} 23. cxb4 {[%emt 0:00:00]} Rd4 {[%emt 0:00:08]} 24. bxa5 {[%emt 0:00:01]} Rxf4 {[%emt 0:00:01]} 25. Rab1 {[%emt 0:00:01]} Ra4 {[%emt 0:00:05]} 26. Rxb7 {[%emt 0:00:08]} Rxa5 {[%emt 0:00:01]} 27. Nd3 {[%emt 0:00:07]} Rxa2 {[%emt 0:00:03]} 28. Nf4 {[%emt 0:00:00]} Bc4 {[%emt 0:00:02]} 29. Rc7 {[%emt 0:00:01]} Ra4 {[%emt 0:00:02]} 30. Rc1 {[%emt 0:00:10]} Bb3 {[%emt 0:00:03]} 31. Nd3 {[%emt 0:00:01]} Rd4 {[%emt 0:00:02]} 32. Nc5 {[%emt 0:00:04]} Rd1+ {[%emt 0:00:00]} 33. Rxd1 {[%emt 0:00:01]} Bxd1 {[%emt 0:00:01]} 34. Kf1 {[%emt 0:00:04]} a5 {[%emt 0:00:01]} 35. Ke1 {[%emt 0:00:01]} Bh5 {[%emt 0:00:04]} 36. g4 {[%emt 0:00:04]} Bg6 {[%emt 0:00:01]} 37. f4 {[%emt 0:00:00]} f6 {[%emt 0:00:03]} 38. Kd2 {[%emt 0:00:02]} a4 {[%emt 0:00:01]} 39. f5 {[%emt 0:00:09]} Bf7 {[%emt 0:00:00]} 40. Kc1 {[%emt 0:00:00]} a3 {[%emt 0:00:01]} 41. Kb1 {[%emt 0:00:01]} Rd8 {[%emt 0:00:08]} 42. Ne6 {[%emt 0:00:04]} Re8 {[%emt 0:00:02]} 43. Rc6 {[%emt 0:00:04]} Rb8+ {[%emt 0:00:02]} 44. Ka2 {[%emt 0:00:02]} Ra8 {[%emt 0:00:01]} 45. Ka1 {[%emt 0:00:03]} a2 {[%emt 0:00:01]} 46. Rc7 {[%emt 0:00:01]} Bxe6 {[%emt 0:00:03]} 47. fxe6 {[%emt 0:00:01]} Re8 {[%emt 0:00:01]} 48. Rc6 {[%emt 0:00:03]} Kf8 {[%emt 0:00:01]} 49. Kxa2 {[%emt 0:00:01]} Rb8 {[%emt 0:00:04]} 50. Rc7 {[%emt 0:00:01]} Re8 {[%emt 0:00:03]} 51. Rc6 {[%emt 0:00:02]} g6 {[%emt 0:00:03]} 52. Kb3 {[%emt 0:00:01]} Ke7 {[%emt 0:00:00]} 53. Kc4 {[%emt 0:00:04]} Rd8 {[%emt 0:00:01]} 54. Rc7+ {[%emt 0:00:03]} Kxe6 {[%emt 0:00:01]} 55. Rh7 {[%emt 0:00:01]} f5 {[%emt 0:00:05]} 56. gxf5+ {[%emt 0:00:01]} gxf5 {[%emt 0:00:01]} 57. Rxh6+ {[%emt 0:00:01]} Ke5 {[%emt 0:00:00]} 58. Rh7 {[%emt 0:00:02]} Ke4 {[%emt 0:00:04]} 59. Re7+ {[%emt 0:00:03]} Kf3 {[%emt 0:00:00]} 60. Re5 {[%emt 0:00:07]} f4 {[%emt 0:00:04]} 61. h4 {[%emt 0:00:01]} Kg3 {[%emt 0:00:02]} 62. h5 {[%emt 0:00:01]} f3 {[%emt 0:00:01]} 63. Rg5+ {[%emt 0:00:01]} Kh4 {[%emt 0:00:03]} 64. Rf5 {[%emt 0:00:01]} Kg4 {[%emt 0:00:04]} 65. Rf7 {[%emt 0:00:01]} Rh8 {[%emt 0:00:01]} 66. Kd3 {[%emt 0:00:00]} Kg3 {[%emt 0:00:02]} 67. Ke3 {[%emt 0:00:09]} Re8+ {[%emt 0:00:00]} 68. Kd2 {[%emt 0:00:01]} f2 {[%emt 0:00:04]} 69. h6 {[%emt 0:00:00]} Kg2 {[%emt 0:00:02]} 70. Rg7+ {[%emt 0:00:01]} Kh2 {[%emt 0:00:02]} 71. Rf7 {[%emt 0:00:01]} Kg1 {[%emt 0:00:02]} 72. Rg7+ {[%emt 0:00:01]} Kf1 {[%emt 0:00:02]} 73. h7 {[%emt 0:00:00]} Rd8+ {[%emt 0:00:00]} 74. Kc2 {[%emt 0:00:01]} Rc8+ {[%emt 0:00:03]} 75. Kd2 {[%emt 0:00:01]} Rd8+ {[%emt 0:00:01]} 76. Kc2 {[%emt 0:00:00]} Rc8+ {[%emt 0:00:04]} 1/2-1/2

[Event "Vugar Gashimov Memorial Blitz 2024"]
[Site "Shusha"]
[Date "2024.09.28"]
[Round "13.4"]
[White "Rapport, Richard"]
[Black "Abdusattorov, Nodirbek"]
[Result "0-1"]
[ECO "A07"]
[WhiteElo "2715"]
[BlackElo "2766"]
[Annotator "TA"]
[PlyCount "62"]
[EventDate "2024.09.28"]
[EventType "tourn"]
[EventCountry "AZE"]
[SourceTitle "playchess.com"]
[Source "ChessBase"]
[SourceQuality "1"]
[TimeControl "180+2"]

{[%evp 13,62,22,30,40,38,50,43,45,43,39,50,27,82,64,54,6,7,12,6,0,18,20,37,64,56,60,64,63,70,63,115,112,110,47,46,-185,-187,-166,-169,-162,-168,-166,-141,-169,-143,-208,-190,-902,-901,-885,-851]} 1. e4 {[%emt 0:00:02]} c6 {[%emt 0:00:00]} 2. d3 {[%emt 0:00:05]} d5 {[%emt 0:00:02]} 3. Nd2 {[%emt 0:00:01]} g6 {[%emt 0:00:04]} 4. Ngf3 {[%emt 0:00:02]} Bg7 {[%emt 0:00:01]} 5. g3 {[%emt 0:00:03]} Nf6 {[%emt 0:00:06]} 6. Bg2 {[%emt 0:00:02]} O-O {[%emt 0:00:03]} 7. O-O {[%emt 0:00:01]} Qc7 {[%emt 0:00:14]} 8. e5 {[%emt 0:00:03]} Ng4 {[%emt 0:00:12]} 9. d4 {[%emt 0:00:02]} f6 {[%emt 0:00:08]} 10. h3 {[%emt 0:00:08] White is slightly better.} Nh6 {[%emt 0:00:01]} 11. Re1 {[%emt 0:00:02]} Nf7 {[%emt 0:00:10]} 12. exf6 {[%emt 0:00:03]} Bxf6 {[%emt 0:00:11]} (12... exf6 $11 {remains equal.} 13. c4 Bd7) 13. Nf1 {[%emt 0:00:11]} Nd7 {[%emt 0:00:03]} 14. N1h2 {[%emt 0:00:03]} (14. Re6 $14 {is more appropriate.}) 14... e5 $11 {[%emt 0:00:28]} 15. Nxe5 {[%emt 0:00:02]} Ndxe5 {[%emt 0:00:04]} 16. Bf4 {[%emt 0:00:03]} Bd7 {[%emt 0:00:28]} 17. dxe5 {[%emt 0:00:08]} Bxe5 {[%emt 0:00:02]} (17... Nxe5 {is interesting.} 18. Bxd5+ cxd5 19. Qxd5+ Rf7) 18. Bxe5 {[%emt 0:00:13]} Nxe5 {[%emt 0:00:01]} 19. Qd4 {[%emt 0:00:01]} Rfe8 {[%emt 0:00:12]} 20. Rad1 {[%emt 0:00:05]} Bf5 {[%emt 0:00:15][%cal Oc7g7]} 21. Rd2 {[%emt 0:00:15] [#] Black must now prevent Rde2.} Re7 {[%emt 0:00:16]} (21... Nc4 $14 22. Rde2 Nd6) 22. g4 $16 {[%emt 0:00:08]} Be4 {[%emt 0:00:34]} 23. f3 {[%emt 0:00:02]} (23. Rde2 $16) 23... Bxf3 $1 $14 {[%emt 0:00:09]} (23... c5 $2 24. Qf2 $18 (24. Qc3 d4 $14)) 24. Bxf3 $2 {[%emt 0:00:02] Loses the game.} (24. Rxe5 $14 {is the one way to stay ahead.} Qxe5 25. Qxe5 (25. Bxf3 $2 {is the wrong capture.} Qg3+ 26. Bg2 Re1+ 27. Nf1 Rf8 $19) (25. Nxf3 Qc7 $14) 25... Rxe5 26. Bxf3 (26. Nxf3 Re4 $16)) 24... Nxf3+ $19 {[%emt 0:00:01]} 25. Nxf3 {[%emt 0:00:02] [#] Rxe7 is the strong threat.} Qg3+ {[%emt 0:00:00]} 26. Rg2 {[%emt 0:00:04][%cal Oe1e7]} Rxe1+ {[%emt 0:00:01]} 27. Nxe1 {[%emt 0:00:01]} Qxe1+ {[%emt 0:00:00]} 28. Kh2 {[%emt 0:00:00]} Re8 {[%emt 0:00:01]} 29. Qxa7 {[%emt 0:00:08]} (29. Rf2 $17) 29... Qe5+ {[%emt 0:00:01]} 30. Rg3 $2 {[%emt 0:00:07]} (30. Kh1) 30... Qf4 {[%emt 0:00:01] ( -> ...Re2+)} 31. Qg1 {[%emt 0:01:55]} Re2+ {[%emt 0:00:01] Weighted Error Value: White=0.61/Black=0.10 (very precise) .  Loses game:     	White=1     	---        Mistake:       	White=4     	Black=2      OK:         	White=7     	Black=7      Best:        	White=1     	Black=4      Strong:       	---       	Black=1} 0-1

[Event "Vugar Gashimov Memorial Blitz 2024"]
[Site "Shusha"]
[Date "2024.09.28"]
[Round "14.1"]
[White "Mamedyarov, Shakhriyar"]
[Black "Rapport, Richard"]
[Result "0-1"]
[ECO "D17"]
[WhiteElo "2733"]
[BlackElo "2715"]
[Annotator "TA"]
[PlyCount "76"]
[EventDate "2024.09.28"]
[EventType "tourn"]
[EventCountry "AZE"]
[SourceTitle "playchess.com"]
[Source "ChessBase"]
[SourceQuality "1"]
[TimeControl "180+2"]

{[%evp 31,76,-12,26,16,17,0,170,197,135,72,279,261,345,119,104,123,116,103,92,0,0,-67,-31,-42,-20,-162,-176,-174,-165,-160,-147,-196,-196,-173,-104,-107,-110,-152,-145,-133,-133,-187,-157,-383,-391,-371,-385]} 1. d4 {[%emt 0:03:04]} d5 {[%emt 0:00:02]} 2. c4 {[%emt 0:00:00]} c6 {[%emt 0:00:01]} 3. Nf3 {[%emt 0:00:00]} Nf6 {[%emt 0:00:01]} 4. Nc3 {[%emt 0:00:00]} dxc4 {[%emt 0:00:03]} 5. a4 {[%emt 0:00:00]} Bf5 {[%emt 0:00:02]} 6. Ne5 {[%emt 0:00:00]} Nbd7 {[%emt 0:00:00]} 7. Nxc4 {[%emt 0:00:00]} Nb6 {[%emt 0:00:02]} 8. Ne5 {[%emt 0:00:00]} a5 {[%emt 0:00:01]} 9. h4 {[%emt 0:00:00] D17: Slav Defence: 5 a4 Bf5: Lines with 6 Nh4 and 6 Ne5.} h6 {[%emt 0:00:11]} 10. f3 {[%emt 0:00:00]} e6 $1 {[%emt 0:00:01][%mdl 4] now scores much better than the old 10...Nfd7.} 11. e4 {[%emt 0:00:00]} Bh7 {[%emt 0:00:01]} 12. Be3 {[%emt 0:00:00]} Bb4 {[%emt 0:00:01]} 13. Be2 {[%emt 0:00:00]} Nfd7 {[%emt 0:00:07]} 14. Nd3 {[%emt 0:00:00]} Nc4 {[%emt 0:00:02]} 15. Bc1 {[%emt 0:00:00]} Bd6 $146 {[%emt 0:00:03]} ({Predecessor:} 15... Nd6 16. Qb3 c5 17. Nxb4 cxb4 18. Bf4 Qe7 19. Nb5 Nxb5 20. Bxb5 O-O 21. Rc1 e5 {1-0 Skatchkov,V (2283)-Saraci,N (2415) Titled Tuesday intern op 09th Feb blitz 2021 (2)}) 16. b3 {[%emt 0:00:00]} Bg3+ {[%emt 0:00:04]} 17. Kf1 {[%emt 0:00:00]} Nd6 {[%emt 0:00:10]} 18. Ba3 {[%emt 0:00:00]} f5 $2 {[%emt 0:00:03]} (18... Nc8 $1 $11 {and Black has nothing to worry.}) 19. Rh3 $18 {[%emt 0:00:00]} fxe4 {[%emt 0:00:03]} 20. Rxg3 {[%emt 0:00:00]} (20. fxe4 $142 O-O+ (20... Qf6+ $2 21. Bf3 $18) 21. Kg1) 20... Nf5 $2 {[%emt 0:00:07]} (20... exd3 $16 {was worth a try.} 21. Bxd3 (21. Bxd6 Nf6 $11) 21... Bxd3+ 22. Qxd3 Nf5) 21. Nxe4 $18 {[%emt 0:00:00]} Nf6 {[%emt 0:00:01] [#]} (21... Ne3+ 22. Kg1 Nxd1 23. Nd6+ Kf8 24. Nxb7+ (24. Rxd1 Kg8 $11) 24... Kg8 25. Nxd8 $18) 22. Rxg7 $2 {[%emt 0:00:00]} (22. Qe1 $3 $18 {[%mdl 512] and White stays clearly on top.}) 22... Nxe4 $16 {[%emt 0:00:09]} 23. fxe4 {[%emt 0:00:00]} (23. Rxb7 $2 Ne3+ 24. Kg1 Nxd1 $19) 23... Nxg7 {[%emt 0:00:14]} (23... Ne3+ $2 24. Kg1 Qf6 25. Bh5+ Kd8 26. Qd2 (26. Qf3 Qxg7 27. Qxe3 Rg8 $18) 26... Qxg7 27. Qxe3 $18) 24. Bh5+ {[%emt 0:00:00]} Kd7 {[%emt 0:00:01]} 25. Qg4 {[%emt 0:00:20]} (25. Bf3 $16 {Strongly threatening d5.} Qxh4 26. Qe1 Qxe1+ 27. Rxe1) 25... Qf6+ $11 {[%emt 0:00:08]} 26. Ke2 {[%emt 0:00:01]} ({Better is} 26. Kg1 $1 $11 Bxe4 (26... Qxd4+ 27. Kh2 $17) 27. Qxe4 Nxh5 28. Nc5+ Kc8 29. Qxe6+ (29. Nxe6 Re8 $17) (29. Rf1 $2 Qxf1+ 30. Kxf1 Ng3+ 31. Kf2 Nxe4+ $19) 29... Qxe6 30. Nxe6) 26... Rag8 {[%emt 0:00:02]} (26... Qxd4 27. Bb2 Qxe4+ 28. Qxe4 Bxe4 29. Nc5+ (29. Bxg7 Bxd3+ 30. Kxd3 Rhg8 $18) 29... Ke7 30. Bxg7 $18) (26... Nxh5 $6 27. Ne5+ Kd8 28. Rf1 $14 (28. Qxh5 Qf4 $11)) (26... Rhg8 $5 27. Bf7 (27. Ne5+ Kc7 $17) 27... Nf5 28. Nc5+ Ke7 (28... Kc7 29. Nxe6+ Kd7 30. Nc5+ Ke7 31. Bxg8 $11) 29. Bxg8 Nxd4+ 30. Kd3 Rxg8 31. Nxe6+ (31. Nxb7+ $2 Kd7 $19) 31... Ke8 $15 (31... Kf7 32. Ng5+ hxg5 33. Qd7+ Kg6 34. hxg5 $16)) 27. Ne5+ {[%emt 0:00:07]} Kc8 {[%emt 0:00:03]} 28. Rf1 {[%emt 0:00:10]} (28. Bf7 $2 Nf5 29. Qf4 Nxd4+ 30. Ke3 Nc2+ 31. Kf3 Qxf4+ 32. Kxf4 Nxa1 $19) (28. Bg6 $1 $11 {and White stays safe.} Nf5 29. exf5 exf5 30. Qf4 Rxg6 (30... Bxg6 31. Nc4 $11) 31. Nxg6 Qxg6 32. Kf2) 28... Nf5 $1 $19 {[%emt 0:00:03]} 29. Qf4 {[%emt 0:00:08]} Ng3+ {[%emt 0:00:06]} (29... Nxd4+ 30. Kd3 Qxf4 31. Rxf4 $11) ({Worse is} 29... Qxh4 30. Qxh4 Nxh4 31. g4 (31. Bg4 Rxg4 32. Nxg4 Bxe4 $11) 31... Bxe4 32. Bf7 $14) 30. Qxg3 {[%emt 0:00:02]} Qxf1+ {[%emt 0:00:02]} 31. Kxf1 {[%emt 0:00:01]} Rxg3 {[%emt 0:00:02]} 32. Bf3 {[%emt 0:00:04]} Rd8 {[%emt 0:00:09]} (32... Bxe4 $19 33. Bxe4 Rxb3) 33. Bc5 {[%emt 0:00:02]} Kc7 {[%emt 0:00:02]} 34. Nc4 {[%emt 0:00:01] [#]} b5 $1 {[%emt 0:00:39]} 35. Bb6+ {[%emt 0:00:05]} Kc8 {[%emt 0:00:01]} 36. Nxa5 {[%emt 0:00:04]} (36. Ne5 $17) 36... Rf8 $19 {[%emt 0:00:01]} 37. Kf2 $2 {[%emt 0:00:02]} (37. Ke2 $17) 37... Rgxf3+ $1 $19 {[%emt 0:00:01]} 38. gxf3 {[%emt 0:00:01]} Bxe4 {[%emt 0:00:02]} 0-1